[Event "Early-Titled-Tuesday-Blitz-April-23-2024"]
[Site "Chess.com"]
[Date "2024.04.23"]
[Round "4"]
[White "JacksterThePro"]
[Black "Maria_Elayza"]
[Result "1-0"]
[WhiteElo "2473"]
[BlackElo "2158"]
[TimeControl "180+1"]
[EndTime "8:40:34 PDT"]
[Termination "JacksterThePro won by resignation"]

1. e4 {[%clk 0:02:55.3]} 1... e6 {[%clk 0:02:56.1]} 2. d3 {[%clk 0:02:40.3]}
2... d5 {[%clk 0:02:54.9]} 3. Nd2 {[%clk 0:02:40.9]} 3... dxe4 {[%clk 0:02:51]}
4. dxe4 {[%clk 0:02:34.6]} 4... Nd7 {[%clk 0:02:49.4]} 5. Ngf3 {[%clk
0:02:33.8]} 5... Ngf6 {[%clk 0:02:48.7]} 6. e5 {[%clk 0:02:01.9]} 6... Ng8
{[%clk 0:02:36.5]} 7. Ne4 {[%clk 0:01:56.9]} 7... Ne7 {[%clk 0:02:29.9]} 8. Bd3
{[%clk 0:01:48.8]} 8... Nc6 {[%clk 0:02:28.4]} 9. Bf4 {[%clk 0:01:26.2]} 9...
Bb4+ {[%clk 0:02:23.1]} 10. c3 {[%clk 0:01:25]} 10... Be7 {[%clk 0:02:12.7]} 11.
Qe2 {[%clk 0:01:23.5]} 11... a6 {[%clk 0:02:12.1]} 12. O-O-O {[%clk 0:01:21.5]}
12... b5 {[%clk 0:02:05.8]} 13. Kb1 {[%clk 0:01:14.6]} 13... Bb7 {[%clk
0:02:03.9]} 14. h4 {[%clk 0:01:05.7]} 14... Qb8 {[%clk 0:01:55]} 15. Neg5 {[%clk
0:00:50.3]} 15... Nd8 {[%clk 0:01:47.7]} 16. Nxh7 {[%clk 0:00:29.8]} 16... c5
{[%clk 0:01:44.8]} 17. h5 {[%clk 0:00:28.9]} 17... c4 {[%clk 0:01:42.9]} 18. Bc2
{[%clk 0:00:27.1]} 18... b4 {[%clk 0:01:40]} 19. Qxc4 {[%clk 0:00:20.6]} 19...
Bd5 {[%clk 0:01:37.8]} 20. Rxd5 {[%clk 0:00:19.5]} 20... exd5 {[%clk 0:01:34.5]}
21. Qxd5 {[%clk 0:00:19.7]} 21... bxc3 {[%clk 0:01:33.1]} 22. Bb3 {[%clk
0:00:16.9]} 22... Qb4 {[%clk 0:01:26.1]} 23. Rd1 {[%clk 0:00:16.7]} 23... Ra7
{[%clk 0:01:21.5]} 24. Be3 {[%clk 0:00:15]} 24... Rb7 {[%clk 0:01:19.4]} 25.
Nhg5 {[%clk 0:00:13.2]} 25... Qb5 {[%clk 0:01:01.8]} 26. Qe4 {[%clk 0:00:03.5]}
26... cxb2 {[%clk 0:00:51.6]} 27. Nxf7 {[%clk 0:00:02.6]} 27... Nxf7 {[%clk
0:00:42.2]} 28. Qg6 {[%clk 0:00:02.9]} 28... Rf8 {[%clk 0:00:41.2]} 29. e6
{[%clk 0:00:02.6]} 29... Kd8 {[%clk 0:00:17.2]} 30. exf7 {[%clk 0:00:03.1]}
30... Qb6 {[%clk 0:00:14.7]} 31. Qd3 {[%clk 0:00:01.9]} 31... Qc6 {[%clk
0:00:13.3]} 32. Nd4 {[%clk 0:00:02.1]} 32... Qd6 {[%clk 0:00:12.7]} 33. Ne6+
{[%clk 0:00:02.6]} 33... Qxe6 {[%clk 0:00:12.5]} 34. Bxe6 {[%clk 0:00:02.3]}
34... Rc7 {[%clk 0:00:12.3]} 35. Bxd7 {[%clk 0:00:01.7]} 35... Bd6 {[%clk
0:00:11.1]} 36. Qxd6 {[%clk 0:00:01.1]} 36... Rxf7 {[%clk 0:00:09.5]} 37. Be6+
{[%clk 0:00:02]} 37... Ke8 {[%clk 0:00:09.2]} 38. Qxc7 {[%clk 0:00:02.1]} 38...
Rxc7 {[%clk 0:00:06.6]} 39. Bb3 {[%clk 0:00:03]} 39... Rb7 {[%clk 0:00:07]} 40.
Kxb2 {[%clk 0:00:03.4]} 40... Rc7 {[%clk 0:00:07.7]} 41. Rd2 {[%clk 0:00:03.6]}
41... a5 {[%clk 0:00:08.5]} 42. Rc2 {[%clk 0:00:04.5]} 42... Ke7 {[%clk
0:00:09]} 43. Rxc7+ {[%clk 0:00:04.3]} 43... Kf6 {[%clk 0:00:07.5]} 44. Bd4+
{[%clk 0:00:04.9]} 44... Kf5 {[%clk 0:00:04.7]} 45. Rxg7 {[%clk 0:00:05.8]} 1-0

[Event "Early-Titled-Tuesday-Blitz-April-23-2024"]
[Site "Chess.com"]
[Date "2024.04.23"]
[Round "4"]
[White "samidescalona2002"]
[Black "dvglko"]
[Result "1-0"]
[WhiteElo "2736"]
[BlackElo "2442"]
[TimeControl "180+1"]
[EndTime "8:40:36 PDT"]
[Termination "samidescalona2002 won by resignation"]

1. d4 {[%clk 0:03:00.9]} 1... d5 {[%clk 0:02:58.7]} 2. c4 {[%clk 0:02:59.3]}
2... c6 {[%clk 0:02:59.2]} 3. Nf3 {[%clk 0:02:59]} 3... Nf6 {[%clk 0:02:59.6]}
4. Qc2 {[%clk 0:02:51.1]} 4... dxc4 {[%clk 0:02:57.2]} 5. Qxc4 {[%clk
0:02:51.1]} 5... Bf5 {[%clk 0:02:52.9]} 6. g3 {[%clk 0:02:49.6]} 6... e6 {[%clk
0:02:52.1]} 7. Bg2 {[%clk 0:02:49.6]} 7... Qd5 {[%clk 0:02:49]} 8. Qa4 {[%clk
0:02:36.7]} 8... Nbd7 {[%clk 0:02:37.6]} 9. Nc3 {[%clk 0:02:35.3]} 9... Qd6
{[%clk 0:02:18.9]} 10. O-O {[%clk 0:02:30.5]} 10... Qb4 {[%clk 0:02:18]} 11. Qd1
{[%clk 0:02:25.2]} 11... Be7 {[%clk 0:02:12.1]} 12. a3 {[%clk 0:02:24.6]} 12...
Qb6 {[%clk 0:02:10.4]} 13. Nh4 {[%clk 0:02:19.5]} 13... O-O {[%clk 0:02:00.8]}
14. e4 {[%clk 0:01:57.7]} 14... Bg4 {[%clk 0:01:50.2]} 15. f3 {[%clk 0:01:57.8]}
15... Bh5 {[%clk 0:01:50]} 16. g4 {[%clk 0:01:58]} 16... Bg6 {[%clk 0:01:43.5]}
17. f4 {[%clk 0:01:56.8]} 17... Nxe4 {[%clk 0:01:30.4]} 18. Nxg6 {[%clk
0:01:53.1]} 18... Nxc3 {[%clk 0:01:24.4]} 19. Nxe7+ {[%clk 0:01:52.4]} 19... Kh8
{[%clk 0:01:23.4]} 20. bxc3 {[%clk 0:01:49.1]} 20... Rfe8 {[%clk 0:01:20.1]} 21.
Nxc6 {[%clk 0:01:25.7]} 21... bxc6 {[%clk 0:01:19.7]} 22. Qf3 {[%clk 0:01:26.6]}
22... Rac8 {[%clk 0:01:19.2]} 23. Be3 {[%clk 0:01:22.2]} 23... Qb3 {[%clk
0:01:16.9]} 24. Rfc1 {[%clk 0:01:20.4]} 24... Nf6 {[%clk 0:01:14.7]} 25. h3
{[%clk 0:01:14.2]} 25... Nd5 {[%clk 0:01:11.6]} 26. Bf2 {[%clk 0:01:05.8]} 26...
Qc4 {[%clk 0:00:54.4]} 27. Bf1 {[%clk 0:01:03.2]} 27... Qb3 {[%clk 0:00:53.1]}
28. Be2 {[%clk 0:00:59.9]} 28... Rb8 {[%clk 0:00:50.3]} 29. c4 {[%clk
0:00:42.2]} 29... Qxf3 {[%clk 0:00:47.1]} 30. Bxf3 {[%clk 0:00:43.1]} 30... Nxf4
{[%clk 0:00:47.6]} 31. Bg3 {[%clk 0:00:43.1]} 31... Rb3 {[%clk 0:00:35.2]} 32.
Bxf4 {[%clk 0:00:29.3]} 32... Rxf3 {[%clk 0:00:34.8]} 33. Bd6 {[%clk 0:00:29.9]}
33... Rxh3 {[%clk 0:00:32.3]} 34. Kg2 {[%clk 0:00:27.4]} 34... Rd3 {[%clk
0:00:30.1]} 35. Rd1 {[%clk 0:00:27.5]} 35... Rc3 {[%clk 0:00:29.4]} 36. Rac1
{[%clk 0:00:26.7]} 36... Rb3 {[%clk 0:00:27.8]} 37. Rb1 {[%clk 0:00:26.8]} 37...
Rc3 {[%clk 0:00:27.9]} 38. Rdc1 {[%clk 0:00:26.9]} 38... Rd3 {[%clk 0:00:28]}
39. Bc5 {[%clk 0:00:27.1]} 39... a6 {[%clk 0:00:15.9]} 40. Rb7 {[%clk
0:00:22.4]} 40... f5 {[%clk 0:00:14.3]} 41. Rf1 {[%clk 0:00:14.4]} 41... Rd2+
{[%clk 0:00:11.4]} 42. Kg3 {[%clk 0:00:14.1]} 42... Rd3+ {[%clk 0:00:11.6]} 43.
Kh4 {[%clk 0:00:14.7]} 43... fxg4 {[%clk 0:00:08.3]} 44. Rff7 {[%clk 0:00:12.9]}
44... Rg8 {[%clk 0:00:05.1]} 45. Bf8 {[%clk 0:00:05.9]} 45... g5+ {[%clk
0:00:03.5]} 46. Kxg4 {[%clk 0:00:05.5]} 46... h5+ {[%clk 0:00:03.9]} 47. Kxh5
{[%clk 0:00:03.5]} 47... Rh3+ {[%clk 0:00:04.5]} 48. Kg4 {[%clk 0:00:04]} 48...
Rh4+ {[%clk 0:00:04.7]} 49. Kg3 {[%clk 0:00:04.1]} 49... Rh1 {[%clk 0:00:03.4]}
50. Bg7+ {[%clk 0:00:04.4]} 50... Kh7 {[%clk 0:00:03.5]} 51. Be5+ {[%clk
0:00:05.3]} 51... Kh6 {[%clk 0:00:03.8]} 52. Rh7+ {[%clk 0:00:05.1]} 52... Kg6
{[%clk 0:00:04.4]} 53. Rxh1 {[%clk 0:00:05.7]} 1-0

[Event "Early-Titled-Tuesday-Blitz-April-23-2024"]
[Site "Chess.com"]
[Date "2024.04.23"]
[Round "4"]
[White "SoCalJuniorChess"]
[Black "vedantgoswami"]
[Result "0-1"]
[WhiteElo "2141"]
[BlackElo "2337"]
[TimeControl "180+1"]
[EndTime "8:40:36 PDT"]
[Termination "vedantgoswami won by resignation"]

1. d4 {[%clk 0:03:00.9]} 1... Nf6 {[%clk 0:02:59]} 2. Nc3 {[%clk 0:03:01.8]}
2... d5 {[%clk 0:02:57.8]} 3. Bf4 {[%clk 0:03:01.9]} 3... Bf5 {[%clk 0:02:53.8]}
4. Nb5 {[%clk 0:02:57.6]} 4... Na6 {[%clk 0:02:52.9]} 5. f3 {[%clk 0:02:56.9]}
5... c6 {[%clk 0:02:51.4]} 6. Nc3 {[%clk 0:02:56.2]} 6... e6 {[%clk 0:02:48.1]}
7. g4 {[%clk 0:02:55.7]} 7... Bg6 {[%clk 0:02:48]} 8. h4 {[%clk 0:02:56.4]} 8...
h5 {[%clk 0:02:45.6]} 9. g5 {[%clk 0:02:56.3]} 9... Nd7 {[%clk 0:02:45.6]} 10.
e3 {[%clk 0:02:55.3]} 10... Qb6 {[%clk 0:02:32.6]} 11. Bd3 {[%clk 0:02:52]}
11... Qxb2 {[%clk 0:02:24.1]} 12. Nge2 {[%clk 0:02:22]} 12... Bxd3 {[%clk
0:02:19.7]} 13. cxd3 {[%clk 0:02:19.7]} 13... Nb4 {[%clk 0:02:16.8]} 14. Rb1
{[%clk 0:02:18]} 14... Qc2 {[%clk 0:02:12.9]} 15. O-O {[%clk 0:02:13.3]} 15...
b5 {[%clk 0:01:58.3]} 16. a3 {[%clk 0:02:01.1]} 16... Qxd1 {[%clk 0:01:51.1]}
17. Rfxd1 {[%clk 0:02:02]} 17... Na6 {[%clk 0:01:50.4]} 18. Rdc1 {[%clk
0:01:39.8]} 18... Bxa3 {[%clk 0:01:46.6]} 19. Rc2 {[%clk 0:01:39.9]} 19... Ke7
{[%clk 0:01:42.7]} 20. Ra2 {[%clk 0:01:39.6]} 20... b4 {[%clk 0:01:40.7]} 21.
Na4 {[%clk 0:01:39.3]} 21... Rhc8 {[%clk 0:01:36.2]} 22. Nec3 {[%clk 0:01:37.3]}
22... f6 {[%clk 0:01:19.1]} 23. Rb3 {[%clk 0:01:21.4]} 23... e5 {[%clk 0:01:17]}
24. gxf6+ {[%clk 0:01:21.3]} 24... gxf6 {[%clk 0:01:16.1]} 25. dxe5 {[%clk
0:01:22.2]} 25... Nxe5 {[%clk 0:01:12.3]} 26. Bxe5 {[%clk 0:01:13.2]} 26... fxe5
{[%clk 0:01:11.6]} 27. Nb1 {[%clk 0:01:12.3]} 27... Bc1 {[%clk 0:01:04.1]} 28.
Kf2 {[%clk 0:01:09.1]} 28... d4 {[%clk 0:01:03.1]} 29. exd4 {[%clk 0:01:07.4]}
29... exd4 {[%clk 0:01:03.1]} 30. Nd2 {[%clk 0:01:04.1]} 30... Bxd2 {[%clk
0:00:50.5]} 31. Rxd2 {[%clk 0:01:03.8]} 31... c5 {[%clk 0:00:50.4]} 32. Ra2
{[%clk 0:00:53.7]} 32... Kd6 {[%clk 0:00:49]} 33. Nb2 {[%clk 0:00:46.7]} 33...
Nc7 {[%clk 0:00:48.6]} 34. Nc4+ {[%clk 0:00:46.6]} 34... Kc6 {[%clk 0:00:42.6]}
35. Ne5+ {[%clk 0:00:44.7]} 35... Kb7 {[%clk 0:00:40.9]} 36. Ra5 {[%clk
0:00:41.8]} 36... Ne6 {[%clk 0:00:38.9]} 37. Nd7 {[%clk 0:00:40.5]} 37... Rc7
{[%clk 0:00:35.7]} 38. Nf6 {[%clk 0:00:39]} 38... Rf8 {[%clk 0:00:32.8]} 39.
Nxh5 {[%clk 0:00:38.7]} 39... Kb6 {[%clk 0:00:32.3]} 40. Ra1 {[%clk 0:00:37]}
40... a5 {[%clk 0:00:32.2]} 41. Rg1 {[%clk 0:00:36.9]} 41... Kb5 {[%clk
0:00:32]} 42. Rg6 {[%clk 0:00:36.3]} 42... Rc6 {[%clk 0:00:31.4]} 43. Ng3 {[%clk
0:00:29.5]} 43... a4 {[%clk 0:00:30.8]} 44. Rb1 {[%clk 0:00:29.9]} 44... a3
{[%clk 0:00:29.7]} 45. h5 {[%clk 0:00:30.3]} 45... a2 {[%clk 0:00:29.7]} 46. Ra1
{[%clk 0:00:30.6]} 46... b3 {[%clk 0:00:30]} 47. h6 {[%clk 0:00:20]} 47... b2
{[%clk 0:00:29.9]} 48. Rxa2 {[%clk 0:00:18.2]} 48... b1=Q {[%clk 0:00:29.8]} 49.
Re2 {[%clk 0:00:18.9]} 49... Nf4 {[%clk 0:00:27.3]} 50. Re7 {[%clk 0:00:17.2]}
50... Qc2+ {[%clk 0:00:25.7]} 51. Ne2 {[%clk 0:00:16.7]} 51... Nxd3+ {[%clk
0:00:23]} 52. Kg3 {[%clk 0:00:16.3]} 52... Rcf6 {[%clk 0:00:20.7]} 53. Rgg7
{[%clk 0:00:13.8]} 53... Rxf3+ {[%clk 0:00:20.7]} 54. Kg4 {[%clk 0:00:13.7]}
54... Qd1 {[%clk 0:00:20.7]} 55. Rb7+ {[%clk 0:00:13.2]} 55... Kc4 {[%clk
0:00:20.9]} 56. h7 {[%clk 0:00:10.3]} 56... Qh1 {[%clk 0:00:19]} 0-1

[Event "Early-Titled-Tuesday-Blitz-April-23-2024"]
[Site "Chess.com"]
[Date "2024.04.23"]
[Round "4"]
[White "grzechu96"]
[Black "JiaHaoxiang"]
[Result "1-0"]
[WhiteElo "2789"]
[BlackElo "2575"]
[TimeControl "180+1"]
[EndTime "8:40:41 PDT"]
[Termination "grzechu96 won by resignation"]

1. e4 {[%clk 0:03:00.9]} 1... c5 {[%clk 0:03:00]} 2. Nf3 {[%clk 0:03:01.2]} 2...
d6 {[%clk 0:03:00.6]} 3. d4 {[%clk 0:03:01.8]} 3... cxd4 {[%clk 0:03:01.5]} 4.
Nxd4 {[%clk 0:03:02.2]} 4... Nf6 {[%clk 0:03:01.8]} 5. Nc3 {[%clk 0:03:02.2]}
5... g6 {[%clk 0:03:02.3]} 6. Be2 {[%clk 0:02:56.1]} 6... Bg7 {[%clk 0:03:02]}
7. O-O {[%clk 0:02:55.5]} 7... O-O {[%clk 0:03:01.9]} 8. Nb3 {[%clk 0:02:56.1]}
8... Nc6 {[%clk 0:03:01.5]} 9. Re1 {[%clk 0:02:56.4]} 9... a6 {[%clk 0:02:54.3]}
10. Bf1 {[%clk 0:02:56.2]} 10... b5 {[%clk 0:02:54.3]} 11. Nd5 {[%clk
0:02:56.7]} 11... Bb7 {[%clk 0:02:46.3]} 12. c3 {[%clk 0:02:50.2]} 12... Nd7
{[%clk 0:02:34]} 13. Bg5 {[%clk 0:02:48.4]} 13... h6 {[%clk 0:02:31.2]} 14. Bh4
{[%clk 0:02:48.8]} 14... Re8 {[%clk 0:02:27.1]} 15. a4 {[%clk 0:02:44.5]} 15...
bxa4 {[%clk 0:02:26.5]} 16. Rxa4 {[%clk 0:02:45.4]} 16... Nb6 {[%clk 0:02:26.7]}
17. Ra1 {[%clk 0:02:27.8]} 17... Nxd5 {[%clk 0:02:24.4]} 18. exd5 {[%clk
0:02:27.9]} 18... Ne5 {[%clk 0:02:24.8]} 19. Na5 {[%clk 0:02:26.4]} 19... Qb6
{[%clk 0:02:21.7]} 20. Qd2 {[%clk 0:02:05]} 20... g5 {[%clk 0:02:18]} 21. Bg3
{[%clk 0:02:05.1]} 21... Reb8 {[%clk 0:02:02.6]} 22. Re4 {[%clk 0:01:53.7]}
22... Bc8 {[%clk 0:02:00]} 23. Rb4 {[%clk 0:01:43.8]} 23... Qc7 {[%clk
0:01:57.3]} 24. Rxb8 {[%clk 0:01:43.1]} 24... Rxb8 {[%clk 0:01:56.4]} 25. h4
{[%clk 0:01:36.8]} 25... Qb6 {[%clk 0:01:33.3]} 26. b4 {[%clk 0:01:30.8]} 26...
Qc7 {[%clk 0:01:31.6]} 27. Ra3 {[%clk 0:01:04.4]} 27... Ng6 {[%clk 0:01:11.9]}
28. hxg5 {[%clk 0:01:01.4]} 28... hxg5 {[%clk 0:01:11.9]} 29. Nc6 {[%clk
0:01:01.8]} 29... Rb6 {[%clk 0:01:08.9]} 30. Qxg5 {[%clk 0:01:00.2]} 30... Rxc6
{[%clk 0:01:04.7]} 31. dxc6 {[%clk 0:01:00.4]} 31... Qxc6 {[%clk 0:01:05.3]} 32.
c4 {[%clk 0:00:53.1]} 32... Bb7 {[%clk 0:00:55.6]} 33. b5 {[%clk 0:00:39.7]}
33... axb5 {[%clk 0:00:55.5]} 34. cxb5 {[%clk 0:00:40.6]} 34... Qe4 {[%clk
0:00:53.1]} 35. Qe3 {[%clk 0:00:38]} 35... Qd5 {[%clk 0:00:33.8]} 36. Qd3 {[%clk
0:00:36.3]} 36... Bd4 {[%clk 0:00:31.9]} 37. Qf3 {[%clk 0:00:18.6]} 37... Qxf3
{[%clk 0:00:29.2]} 38. gxf3 {[%clk 0:00:19.5]} 38... Bc5 {[%clk 0:00:29.5]} 39.
Ra1 {[%clk 0:00:18]} 39... e5 {[%clk 0:00:25.4]} 40. Kg2 {[%clk 0:00:10.6]}
40... f5 {[%clk 0:00:25.5]} 41. Bd3 {[%clk 0:00:09.4]} 41... e4 {[%clk
0:00:23.2]} 42. fxe4 {[%clk 0:00:08.6]} 42... fxe4 {[%clk 0:00:22.6]} 43. Bc4+
{[%clk 0:00:08.9]} 43... d5 {[%clk 0:00:22.9]} 44. Bb3 {[%clk 0:00:09.5]} 44...
Kg7 {[%clk 0:00:22.9]} 45. Rc1 {[%clk 0:00:08.9]} 45... Bb6 {[%clk 0:00:23.4]}
46. Bc7 {[%clk 0:00:09.1]} 46... Bd4 {[%clk 0:00:23.5]} 47. Ba5 {[%clk
0:00:09.3]} 47... Nf4+ {[%clk 0:00:21.9]} 48. Kf1 {[%clk 0:00:08.5]} 48... Be5
{[%clk 0:00:21.3]} 49. Bc7 {[%clk 0:00:08.4]} 49... Nd3 {[%clk 0:00:20.5]} 50.
Bxe5+ {[%clk 0:00:08.4]} 50... Kg6 {[%clk 0:00:20]} 51. Rc7 {[%clk 0:00:08.8]}
51... Nxe5 {[%clk 0:00:20.3]} 52. Rxb7 {[%clk 0:00:09.2]} 52... d4 {[%clk
0:00:21]} 53. Re7 {[%clk 0:00:08.2]} 53... Kf6 {[%clk 0:00:21.2]} 54. Re6+
{[%clk 0:00:08.7]} 54... Kf5 {[%clk 0:00:21.6]} 55. b6 {[%clk 0:00:08.4]} 55...
d3 {[%clk 0:00:21.9]} 56. Rxe5+ {[%clk 0:00:07.7]} 56... Kxe5 {[%clk 0:00:22.3]}
57. b7 {[%clk 0:00:08.3]} 1-0

[Event "Early-Titled-Tuesday-Blitz-April-23-2024"]
[Site "Chess.com"]
[Date "2024.04.23"]
[Round "4"]
[White "Byniolus"]
[Black "karinachess1"]
[Result "1-0"]
[WhiteElo "2837"]
[BlackElo "2606"]
[TimeControl "180+1"]
[EndTime "8:40:42 PDT"]
[Termination "Byniolus won by resignation"]

1. d4 {[%clk 0:03:00.9]} 1... Nf6 {[%clk 0:03:00.2]} 2. Nf3 {[%clk 0:03:01.2]}
2... e6 {[%clk 0:02:55.4]} 3. Bf4 {[%clk 0:03:01.2]} 3... b6 {[%clk 0:02:55.4]}
4. e3 {[%clk 0:03:01.3]} 4... Bb7 {[%clk 0:02:55.6]} 5. h3 {[%clk 0:03:01.3]}
5... Bd6 {[%clk 0:02:55.5]} 6. Bxd6 {[%clk 0:03:01.3]} 6... cxd6 {[%clk
0:02:56.4]} 7. Nbd2 {[%clk 0:03:01.7]} 7... O-O {[%clk 0:02:56.7]} 8. Be2 {[%clk
0:03:02.2]} 8... d5 {[%clk 0:02:57.3]} 9. O-O {[%clk 0:03:01.9]} 9... Nc6 {[%clk
0:02:55.6]} 10. c4 {[%clk 0:03:01.7]} 10... dxc4 {[%clk 0:02:55.6]} 11. Nxc4
{[%clk 0:03:02.6]} 11... d5 {[%clk 0:02:52.2]} 12. Nce5 {[%clk 0:03:02.8]} 12...
Nxe5 {[%clk 0:02:49.8]} 13. Nxe5 {[%clk 0:03:03.7]} 13... Qd6 {[%clk 0:02:45.8]}
14. Qa4 {[%clk 0:03:02]} 14... a6 {[%clk 0:02:42.4]} 15. Rfc1 {[%clk 0:03:00.1]}
15... Rfc8 {[%clk 0:02:37.6]} 16. a3 {[%clk 0:02:03.3]} 16... h6 {[%clk
0:02:33.4]} 17. b4 {[%clk 0:01:58.2]} 17... Rc7 {[%clk 0:02:03.9]} 18. Bd3
{[%clk 0:01:14]} 18... Rac8 {[%clk 0:01:41.7]} 19. Qd1 {[%clk 0:01:13.4]} 19...
Rc3 {[%clk 0:01:33.7]} 20. Rxc3 {[%clk 0:00:59.7]} 20... Rxc3 {[%clk 0:01:33.1]}
21. Qe2 {[%clk 0:01:00.6]} 21... b5 {[%clk 0:01:06.3]} 22. Qb2 {[%clk
0:00:47.5]} 22... Rc8 {[%clk 0:00:52.6]} 23. Bf1 {[%clk 0:00:41.8]} 23... Qc7
{[%clk 0:00:48.6]} 24. Nd3 {[%clk 0:00:39.1]} 24... Nd7 {[%clk 0:00:36.9]} 25.
Nc5 {[%clk 0:00:31.5]} 25... Nb6 {[%clk 0:00:31.8]} 26. a4 {[%clk 0:00:25.5]}
26... bxa4 {[%clk 0:00:24.6]} 27. Bd3 {[%clk 0:00:07.8]} 27... Ra8 {[%clk
0:00:11.5]} 28. Qc3 {[%clk 0:00:07.2]} 28... g6 {[%clk 0:00:10.3]} 29. Nxa4
{[%clk 0:00:06.6]} 29... Qxc3 {[%clk 0:00:09]} 30. Nxc3 {[%clk 0:00:07.5]} 30...
Kf8 {[%clk 0:00:07.4]} 31. Kf1 {[%clk 0:00:06]} 31... Ke7 {[%clk 0:00:07.8]} 32.
Ke2 {[%clk 0:00:06.6]} 32... Kd6 {[%clk 0:00:08.2]} 33. Kd2 {[%clk 0:00:07]}
33... g5 {[%clk 0:00:08.3]} 34. g3 {[%clk 0:00:06.8]} 34... f6 {[%clk
0:00:08.6]} 35. Ra2 {[%clk 0:00:04.6]} 35... Bc8 {[%clk 0:00:05.1]} 36. Ne2
{[%clk 0:00:03.1]} 36... Bb7 {[%clk 0:00:01.3]} 37. f3 {[%clk 0:00:02.6]} 37...
e5 {[%clk 0:00:01.9]} 38. Nc3 {[%clk 0:00:02.9]} 38... exd4 {[%clk 0:00:01.8]}
39. exd4 {[%clk 0:00:03.8]} 39... Bc8 {[%clk 0:00:01.9]} 40. h4 {[%clk 0:00:04]}
40... Bb7 {[%clk 0:00:01.7]} 41. h5 {[%clk 0:00:03.1]} 41... Bc8 {[%clk
0:00:01.7]} 42. f4 {[%clk 0:00:04]} 42... Bb7 {[%clk 0:00:01.9]} 43. Nd1 {[%clk
0:00:02.5]} 43... Bc8 {[%clk 0:00:02.2]} 44. Ne3 {[%clk 0:00:03.1]} 44... Bb7
{[%clk 0:00:01.4]} 45. Nf5+ {[%clk 0:00:03.3]} 45... Ke6 {[%clk 0:00:01.4]} 46.
Nxh6 {[%clk 0:00:04.2]} 46... Rh8 {[%clk 0:00:01.3]} 47. Bf5+ {[%clk 0:00:04.3]}
47... Ke7 {[%clk 0:00:01.4]} 48. fxg5 {[%clk 0:00:03]} 48... fxg5 {[%clk
0:00:01.6]} 49. Ng4 {[%clk 0:00:03.5]} 49... Rxh5 {[%clk 0:00:02.3]} 50. Kc3
{[%clk 0:00:03.8]} 50... Rh8 {[%clk 0:00:01.7]} 51. Re2+ {[%clk 0:00:04.7]}
51... Kd8 {[%clk 0:00:01.5]} 52. Ne5 {[%clk 0:00:04.8]} 52... Nd7 {[%clk
0:00:01.7]} 53. Nf7+ {[%clk 0:00:05.1]} 53... Kc7 {[%clk 0:00:01.8]} 54. Nxh8
{[%clk 0:00:06]} 54... Nb6 {[%clk 0:00:02.5]} 55. Re7+ {[%clk 0:00:05.9]} 1-0

[Event "Early-Titled-Tuesday-Blitz-April-23-2024"]
[Site "Chess.com"]
[Date "2024.04.23"]
[Round "4"]
[White "Elegance_Riks"]
[Black "sergoy"]
[Result "1/2-1/2"]
[WhiteElo "2771"]
[BlackElo "2920"]
[TimeControl "180+1"]
[EndTime "8:40:45 PDT"]
[Termination "Game drawn - insufficient material"]

1. e4 {[%clk 0:03:00.9]} 1... c5 {[%clk 0:03:00.2]} 2. c3 {[%clk 0:03:00.5]}
2... Nf6 {[%clk 0:02:59.8]} 3. e5 {[%clk 0:03:00.8]} 3... Nd5 {[%clk 0:03:00.5]}
4. Nf3 {[%clk 0:02:59.6]} 4... Nc6 {[%clk 0:02:59.9]} 5. d4 {[%clk 0:02:59.9]}
5... cxd4 {[%clk 0:03:00.2]} 6. cxd4 {[%clk 0:03:00.5]} 6... e6 {[%clk
0:03:00.6]} 7. Bd2 {[%clk 0:02:57.1]} 7... d6 {[%clk 0:03:00.1]} 8. Nc3 {[%clk
0:02:57]} 8... Be7 {[%clk 0:02:51.4]} 9. Bb5 {[%clk 0:02:50]} 9... O-O {[%clk
0:02:49.6]} 10. O-O {[%clk 0:02:49.8]} 10... Bd7 {[%clk 0:02:48.3]} 11. Nxd5
{[%clk 0:02:41.9]} 11... exd5 {[%clk 0:02:47.6]} 12. Bd3 {[%clk 0:02:42]} 12...
dxe5 {[%clk 0:02:44]} 13. dxe5 {[%clk 0:02:41.4]} 13... Be6 {[%clk 0:02:44.1]}
14. Re1 {[%clk 0:02:33.5]} 14... Rc8 {[%clk 0:02:43.2]} 15. Rc1 {[%clk
0:02:32.2]} 15... Qd7 {[%clk 0:02:38.2]} 16. Ng5 {[%clk 0:02:11.9]} 16... Bxg5
{[%clk 0:02:28.9]} 17. Bxg5 {[%clk 0:02:11.2]} 17... d4 {[%clk 0:02:24.8]} 18.
Qh5 {[%clk 0:02:00.3]} 18... Bf5 {[%clk 0:02:22.4]} 19. Qf3 {[%clk 0:01:21.3]}
19... Bxd3 {[%clk 0:02:19.3]} 20. Qxd3 {[%clk 0:01:21.4]} 20... Rfe8 {[%clk
0:02:19.9]} 21. Qg3 {[%clk 0:01:19.9]} 21... Qf5 {[%clk 0:02:17]} 22. Bh6 {[%clk
0:01:08.4]} 22... Qg6 {[%clk 0:02:14.8]} 23. Qxg6 {[%clk 0:01:07.9]} 23... hxg6
{[%clk 0:02:13.5]} 24. Bf4 {[%clk 0:01:07.2]} 24... Rcd8 {[%clk 0:01:56]} 25.
Rcd1 {[%clk 0:00:52.5]} 25... Rd5 {[%clk 0:01:55.6]} 26. Kf1 {[%clk 0:00:47.7]}
26... Rb5 {[%clk 0:01:52.7]} 27. Rd2 {[%clk 0:00:44]} 27... a5 {[%clk
0:01:49.8]} 28. h4 {[%clk 0:00:40]} 28... a4 {[%clk 0:01:49.8]} 29. f3 {[%clk
0:00:31.1]} 29... Rc5 {[%clk 0:01:49.4]} 30. Bg3 {[%clk 0:00:30.9]} 30... Rd5
{[%clk 0:01:27.7]} 31. Re4 {[%clk 0:00:29]} 31... Rc5 {[%clk 0:01:07.2]} 32. Re1
{[%clk 0:00:27.1]} 32... Rd8 {[%clk 0:01:01.3]} 33. e6 {[%clk 0:00:26.6]} 33...
fxe6 {[%clk 0:01:01.7]} 34. Rxe6 {[%clk 0:00:26.8]} 34... Kf7 {[%clk 0:01:02.4]}
35. Re4 {[%clk 0:00:25.8]} 35... Rc1+ {[%clk 0:01:00.8]} 36. Ke2 {[%clk
0:00:22.5]} 36... d3+ {[%clk 0:00:53.8]} 37. Ke3 {[%clk 0:00:21.2]} 37... Ne7
{[%clk 0:00:51.8]} 38. Bf4 {[%clk 0:00:15.5]} 38... Nf5+ {[%clk 0:00:34.9]} 39.
Kf2 {[%clk 0:00:15.9]} 39... b5 {[%clk 0:00:31.9]} 40. g4 {[%clk 0:00:15.9]}
40... Nh6 {[%clk 0:00:24.1]} 41. Bg5 {[%clk 0:00:16.2]} 41... Rd7 {[%clk
0:00:23.8]} 42. Re3 {[%clk 0:00:16.2]} 42... Rb1 {[%clk 0:00:18.6]} 43. a3
{[%clk 0:00:15.5]} 43... Ng8 {[%clk 0:00:18.5]} 44. Rexd3 {[%clk 0:00:15.5]}
44... Rxd3 {[%clk 0:00:18.7]} 45. Rxd3 {[%clk 0:00:16.4]} 45... Rxb2+ {[%clk
0:00:19.4]} 46. Ke3 {[%clk 0:00:17.2]} 46... Nf6 {[%clk 0:00:20]} 47. Bxf6
{[%clk 0:00:17.2]} 47... gxf6 {[%clk 0:00:19.6]} 48. Kf4 {[%clk 0:00:17.5]}
48... Rb3 {[%clk 0:00:18.8]} 49. Ke3 {[%clk 0:00:17.7]} 49... Rb1 {[%clk
0:00:16.2]} 50. Kd4 {[%clk 0:00:16.1]} 50... Ke6 {[%clk 0:00:13.8]} 51. Kc5
{[%clk 0:00:16.4]} 51... Ke5 {[%clk 0:00:14.3]} 52. Re3+ {[%clk 0:00:15.6]}
52... Kf4 {[%clk 0:00:14.3]} 53. Re6 {[%clk 0:00:16.3]} 53... Kxf3 {[%clk
0:00:07.1]} 54. Rxf6+ {[%clk 0:00:16.8]} 54... Kxg4 {[%clk 0:00:07.2]} 55. Rxg6+
{[%clk 0:00:17.3]} 55... Kxh4 {[%clk 0:00:08]} 56. Rb6 {[%clk 0:00:17.8]} 56...
Rb3 {[%clk 0:00:08.4]} 57. Rxb5 {[%clk 0:00:18.1]} 57... Rxa3 {[%clk 0:00:09.1]}
58. Ra5 {[%clk 0:00:18.6]} 58... Kg4 {[%clk 0:00:09.1]} 59. Kb4 {[%clk
0:00:18.9]} 59... Ra1 {[%clk 0:00:09.3]} 60. Rxa4 {[%clk 0:00:19.2]} 60... Rxa4+
{[%clk 0:00:10.2]} 61. Kxa4 {[%clk 0:00:19.7]} 1/2-1/2